Cogmind - Beta 14 @@@ ROGUE MODE // 2024.08.08 @ 15:54:06 Player: OctagonalPrism Result: Destroyed by H-61 Shepherd with Heavy Assault Cannon Performance ------------- Evolutions (2) 1000 Regions Visited (3) 600 Robots Destroyed (31) 155 Value Destroyed (897) 897 Prototype IDs (3) 60 Alien Tech Used (0) 0 Bonus (0) 0 TOTAL SCORE: 2712 Bonus ------- None Cogmind --------- Core Integrity 0/550 Matter 299/300 Energy 100/100 System Corruption 0% Temperature Cool (0) Movement Core (50) Location -8/Materials Parts ------- > --- POWER (1) -------- (None) > --- PROPULSION (2) --- (None) > --- UTILITY (6) ------ Targeting Computer Advanced Targeting Computer Armor Integrity Analyzer > --- WEAPON (2) ------- (None) > --- INVENTORY (5) ---- Improved Heat Sink High-capacity Matter Pod (200) Core Analyzer Recoil Stabilizer Peak State ------------ > --- POWER ------------ Ion Engine > --- PROPULSION ------- Light Treads > --- UTILITY ---------- Medium Storage Unit Advanced Targeting Computer Recoil Stabilizer Heavy Armor Plating Tractor Beam > --- WEAPON ----------- Heavy Particle Gun Gauss Rifle > --- INVENTORY -------- Light Nuclear Core Improved Heat Sink High-capacity Matter Pod Recoil Stabilizer [Rating: 25] Favorites ----------- Power Ion Engine Engine Ion Engine Propulsion Light Treads Treads Light Treads Leg Aluminum Leg Wheel Compact Wheel Utility Advanced Targeting Computer Device Recoil Stabilizer Storage Medium Storage Unit Processor Advanced Targeting Computer Protection Heavy Armor Plating Weapon Medium Laser Energy Gun Medium Laser Ballistic Gun Gauss Rifle Launcher Grenade Launcher Build | -11 -10 -9 -8 ------- Run | Yrd Mat Mat Mat Slots Evolved 4 | . . 2 2 Power . | . . . . Propulsion . | . . . . Utility 4 | . . 2 2 Weapon . | . . . . Parts Attached 42 | 5 2 14 21 Power 3 | 1 . 1 1 Engine 3 | 1 . 1 1 Core . | . . . . Reactor . | . . . . Propulsion 9 | 2 . 2 5 Treads 6 | . . 1 5 Leg 1 | . . 1 . Wheel 2 | 2 . . . Hover . | . . . . Flight . | . . . . Utility 15 | . 2 4 9 Device 8 | . 2 2 4 Storage 1 | . . . 1 Processor 4 | . . 1 3 Hackware . | . . . . Protection 2 | . . 1 1 Artifact . | . . . . Weapon 15 | 2 . 7 6 Energy Gun 8 | 2 . 3 3 Energy Cannon . | . . . . Ballistic Gun 6 | . . 3 3 Ballistic Cannon . | . . . . Launcher 1 | . . 1 . Special Weapon . | . . . . Impact Weapon . | . . . . Slashing Weapon . | . . . . Piercing Weapon . | . . . . Special Melee Weapon . | . . . . Unidentified Prototypes 1 | . . . 1 Parts Lost 31 | . . 16 15 Power 3 | . . 2 1 Propulsion 8 | . . 4 4 Utility 10 | . . 5 5 Weapon 10 | . . 5 5 Highest Loss Streak 11 | . . 11 5 To Critical Strikes 1 | . . . 1 Average Slot Usage (%) 71 | . 89 68 70 Engine 6 | . 14 7 5 Treads 5 | . . 2 8 Wheel 5 | . 28 11 . Device 18 | . 17 17 18 Storage 5 | . . . 8 Processor 9 | . . 8 11 Protection 2 | . . . 3 Energy Gun 10 | . 28 11 7 Ballistic Gun 7 | . . 7 7 Peak Build Rating 25 | 5 7 8 25 Average Rating 14 | 3 6 6 19 On Entrance 3 | . 5 7 2 Naked Turns . | . . . . Heaviest Build 39 | 7 9 9 39 Greatest Support 40 | 32 32 32 40 Greatest Overweight (x) 8 | . . 2 8 Average Overweight (x) . | . . . . Largest Inventory Capacity 10 | 5 5 5 10 Average Capacity 7 | 5 5 5 9 Most Carried 5 | . . 2 5 Average Carried 1 | . . . 2 Final Capacity 5 | 5 5 5 5 Final Carried 4 | . . . 4 Class Distribution -------------------- 50% | Scavenger-Mutant 37% | Mutant 12% | Skirmisher Dominant Class ---------------- Mutant | -10/Materials Mutant | -9/Materials Scavenger-Mutant | -8/Materials Resources | -11 -10 -9 -8 ----------- Run | Yrd Mat Mat Mat Matter Collected 1057 | 234 26 163 634 Remotely 167 | . . . 167 Salvage Created 1200 | . 26 253 921 Parts 60 | . 3 17 40 Haulers Intercepted 2 | . . . 2 Recyclers Shooed 2 | . . . 2 Parts Field Recycled . | . . . . Retrieved Matter . | . . . . Parts Self-Destructed . | . . . . Prevented . | . . . . Kills | -11 -10 -9 -8 ------- Run | Yrd Mat Mat Mat Combat Hostiles Destroyed 24 | . . 12 12 Guns 19 | . . 7 12 AOE 5 | . . 5 . Classes Destroyed 10 | . 1 3 6 Worker 1 | . . . 1 Hauler 2 | . . . 2 Recycler 2 | . . . 2 Watcher 2 | . 1 1 . Swarmer 7 | . . 6 1 Grunt 10 | . . 5 5 Brawler 1 | . . . 1 Sentry 2 | . . 1 1 Specialist 2 | . . . 2 Hunter 2 | . . . 2 Best Kill Streak 9 | . 1 9 4 Combat Bots Only 9 | . . 9 2 Max Kills in Single Turn 2 | . 1 2 1 Gunslinging . | . . . . Exploded 2 | . . 2 . Melee . | . . . . Uniques/NPCs Destroyed . | . . . . Combat | -11 -10 -9 -8 -------- Run | Yrd Mat Mat Mat Hostile Shots Fired 352 | . . 183 169 Missed 100 | . . 70 30 Damage Taken 3486 | . . 1298 2188 Core 887 | . . 305 582 Absorbed by Shields . | . . . . Core Remaining (%) 74 | 100 100 23 . Volleys Fired 129 | . 5 33 91 Largest 2 | . 2 2 2 Hottest 105 | . 100 105 95 Shots Fired 211 | . 10 59 142 Gun 206 | . 10 54 142 Cannon . | . . . . Launcher 5 | . . 5 . Special . | . . . . Kinetic 101 | . . 26 75 Thermal 96 | . 10 28 58 Explosive 5 | . . 5 . Electromagnetic 9 | . . . 9 Robot Hit Streak 12 | . 1 7 12 Robot Miss Streak 5 | . 2 5 3 Penetration Max 1 | . . . 1 Secondary Targets 1 | . . 1 . Max Gunslinging Chain 1 | . . 1 . Shots Hit Robots 140 | . 4 35 101 Core Hits 61 | . 1 29 31 Critical Kills . | . . . . Critical Parts Destroyed 1 | . . . 1 Critical Strikes 5 | . 1 1 3 Burn 3 | . 1 1 1 Destroy 1 | . . . 1 Corrupt 1 | . . . 1 Melee Attacks . | . . . . Impact . | . . . . Slashing . | . . . . Piercing . | . . . . Sneak Attacks . | . . . . Combat Hostiles . | . . . . Follow-up Attacks . | . . . . Damage Inflicted 2779 | . 62 861 1856 Guns 2297 | . 62 379 1856 Cannons . | . . . . Explosions 473 | . . 473 . Melee . | . . . . Ramming 9 | . . 9 . Kinetic 1132 | . . 104 1028 Thermal 1053 | . 62 275 716 Explosive 473 | . . 473 . Electromagnetic 112 | . . . 112 Impact . | . . . . Slashing . | . . . . Piercing . | . . . . Highest Corruption 4 | . . 4 . Average Corruption 4 | . . 4 . Corruption Purged . | . . . . Corruption Blocked . | . . . . Effects 3 | . . 3 . Matter Fused 3 | . . 3 . Overload Shots . | . . . . Overflow Damage . | . . . . Projectiles . | . . . . Explosions . | . . . . Melee . | . . . . Knockbacks . | . . . . Impact . | . . . . Kinetic . | . . . . Secondary . | . . . . Self-Inflicted Damage 3 | . . 3 . Shots . | . . . . Rammed 5 | . . 4 1 Targets Rammed 7 | . . 6 1 Kicked 2 | . . 2 . Crushed . | . . . . Highest Temperature 312 | . 195 105 312 Average Temperature 87 | . 100 28 112 Received Heat Transfer 804 | . . 345 459 Siege Activations . | . . . . Robots Corrupted . | . . . . Combat Hostiles . | . . . . Parts Fried . | . . . . Impact Corruptions . | . . . . Robots Melted . | . . . . Combat Hostiles . | . . . . Parts Melted 4 | . . 1 3 Heat Transferred 2506 | . 259 767 1480 Parts Sabotaged . | . . . . Parts Stolen . | . . . . Parts Stripped . | . . . . Power Chain Reactions . | . . . . Alert | -11 -10 -9 -8 ------- Run | Yrd Mat Mat Mat Peak Influence 319 | . 42 319 202 Initial 31 | . . 17 31 Average 86 | . 19 102 90 Maximum Alert Level 1 | . . 1 1 Low Security (%) 89 | 100 100 78 93 Level 1 10 | . . 21 6 Level 2 . | . . . . Level 3 . | . . . . Level 4 . | . . . . Level 5 . | . . . . High Security . | . . . . Max Security . | . . . . Squads Dispatched 7 | . 1 1 5 Investigation 4 | . 1 1 2 Extermination . | . . . . Reinforcement 3 | . . . 3 Assault . | . . . . Garrison . | . . . . Intercept . | . . . . Searches Triggered . | . . . . Construction Impeded . | . . . . Haulers Reinforced . | . . . . Active Scanning Responses . | . . . . Cargo Convoy Interrupts . | . . . . Stealth | -11 -10 -9 -8 --------- Run | Yrd Mat Mat Mat Distress Signals 2 | . . 1 1 Communications Jammed . | . . . . Distress Signals . | . . . . Times Spotted 50 | . 5 26 19 Peak Tracking Total 10 | . 3 10 6 Tactical Retreats 6 | . . 4 2 Traps | -11 -10 -9 -8 ------- Run | Yrd Mat Mat Mat Traps Triggered 1 | . . . 1 Indirectly . | . . . . Trap Hack Attempts . | . . . . Triggered . | . . . . Disarmed . | . . . . Reprogrammed . | . . . . Reused . | . . . . Traps Extracted . | . . . . Installed . | . . . . Triggered . | . . . . Machines | -11 -10 -9 -8 ---------- Run | Yrd Mat Mat Mat Machines Disabled . | . . . . Max in Single Turn . | . . . . Machines Repaired . | . . . . Machines Dismantled . | . . . . Machines Sabotaged . | . . . . Overloaded Fab Kills . | . . . . Hacking | -11 -10 -9 -8 --------- Run | Yrd Mat Mat Mat Machines Accessed 8 | . 2 4 2 Terminals 6 | . 2 4 . Fabricators . | . . . . Repair Stations 1 | . . . 1 Recycling Units 1 | . . . 1 Scanalyzers . | . . . . Garrison Access . | . . . . Total Hacks 28 | . 8 16 4 Successful 15 | . 5 8 2 Failed 13 | . 3 8 2 Catastrophic 3 | . 1 . 2 Database Lockouts . | . . . . Manual 20 | . 6 14 . Terminals 24 | . 8 16 . Fabricators . | . . . . Repair Stations 3 | . . . 3 Recycling Units 1 | . . . 1 Scanalyzers . | . . . . Garrison Access . | . . . . Terminal Hacks 4 | . 3 1 . Robot Analysis 2 | . 2 . . Prototype ID Bank 1 | . . 1 . Zone Layout 1 | . 1 . . Fabricator Hacks . | . . . . Repair Station Hacks 1 | . . . 1 Scan Component 1 | . . . 1 Recycling Unit Hacks 1 | . . . 1 Report Inventory 1 | . . . 1 Scanalyzer . | . . . . Garrison Access Hacks . | . . . . Unauthorized Hacks 9 | . 2 7 . Terminals 9 | . 2 7 . Track 2 | . . 2 . Botnet 4 | . 1 3 . Disrupt 1 | . . 1 . Operators 2 | . 1 1 . Fabricators . | . . . . Repair Stations . | . . . . Recycling Units . | . . . . Scanalyzers . | . . . . Garrison Access . | . . . . Data Cores Recovered . | . . . . Used . | . . . . Hacking Detections 4 | . 1 2 1 Full Trace Events 3 | . 1 1 1 Feedback Events . | . . . . Feedback Blocked . | . . . . Robot Schematics Acquired . | . . . . Robots Built . | . . . . Authchips . | . . . . Time . | . . . . Total Robot Build Rating . | . . . . Part Schematics Acquired . | . . . . Parts Built . | . . . . Authchips . | . . . . Time . | . . . . Total Part Build Rating . | . . . . Parts Repaired . | . . . . Time . | . . . . Parts Recycled . | . . . . Recycled Matter . | . . . . Retrieved Matter . | . . . . Retrieved Components . | . . . . Parts Scanalyzed . | . . . . Part Schematics Acquired . | . . . . Parts Damaged . | . . . . Bothacking | -11 -10 -9 -8 ------------ Run | Yrd Mat Mat Mat Used RIF Installer . | . . . . Robots Hacked . | . . . . Non-combat . | . . . . Combat . | . . . . Robot Hacks Applied . | . . . . Relay Couplers Released . | . . . . Fabnet Peak Effective % . | . . . . Robots Rewired . | . . . . Allies Hacked . | . . . . Hacks Repelled . | . . . . Allies | -11 -10 -9 -8 -------- Run | Yrd Mat Mat Mat Total Allies . | . . . . Largest Group . | . . . . Highest-Rated Group . | . . . . Highest-Rated Ally . | . . . . Total Orders . | . . . . Ally Attacks . | . . . . Total Damage . | . . . . Kills . | . . . . Allies Corrupted . | . . . . Allies Melted . | . . . . Intel | -11 -10 -9 -8 ------- Run | Yrd Mat Mat Mat Robot Analysis Total 2 | . 2 . . Derelict Logs Recovered . | . . . . Drone Launches . | . . . . Drone Recoveries . | . . . . Exploration | -11 -10 -9 -8 ------------- Run | Yrd Mat Mat Mat Turns Passed 1466 | 41 111 439 875 Spaces Moved 720 | 35 94 278 313 Core 119 | 1 . 44 74 Treads 268 | . . 29 239 Legs 28 | . . 28 . Wheels 305 | 34 94 177 . Hover . | . . . . Flight . | . . . . Fastest Speed 50 | 50 100 50 50 Average Speed 135 | 98 100 101 180 Slowest Speed 450 | 100 100 160 450 Overloaded Moves . | . . . . Propulsion Burnouts . | . . . . Robots Hopped . | . . . . Cave-ins Triggered . | . . . . Exploration Rate (%) 19 | 3 25 26 23 Regions Visited 3 Branch Regions . Pre-discovered Areas . | . . . . Known Exits Taken . | . . . . Unknown Exits Taken 3 | 1 1 1 . Scrap Searched . | . . . . Spaces Dug . | . . . . Terrain Destroyed 30 | . . 30 . Melee . | . . . . Projectile . | . . . . AOE 30 | . . 30 . Terrain Rammed . | . . . . Walls Destroyed . | . . . . Machines Disabled . | . . . . Actions | -11 -10 -9 -8 --------- Run | Yrd Mat Mat Mat Total 998 | 39 100 377 482 Wait 83 | . . 42 41 Move 717 | 34 93 277 313 Hop . | . . . . Pick Up 10 | . . 2 8 Fast Attach 33 | 5 2 10 16 Attach 7 | . . 3 4 Detach 5 | . . 2 3 Swap 2 | . . 1 1 Drop 5 | . . 1 4 Fire 129 | . 5 33 91 Melee . | . . . . Ram 5 | . . 4 1 Kick 2 | . . 2 . Crush . | . . . . Escape Stasis . | . . . . Rewire . | . . . . Trap . | . . . . Miscellaneous . | . . . . Route ------- -11/Scrapyard -10/Materials -9/Materials -8/Materials History --------- Turn | Location | Event 23 | -11/Scrapyard | Discovered new exit (range 14) 42 | -11/Scrapyard | Entered Materials 138 | -10/Materials | Discovered new exit (range 16) 153 | -10/Materials | Entered another Materials area 153 | -9/Materials | Evolved 2 slots: Utility x2 497 | -9/Materials | Destroyed 9 combat bots 560 | -9/Materials | Discovered new exit (range 10) 563 | -9/Materials | Lost 11 parts (1p1n5u4w) 574 | -9/Materials | Core integrity fell below 50% 592 | -9/Materials | Entered another Materials area 592 | -8/Materials | Evolved 2 slots: Utility x2 975 | -8/Materials | Build established: Scavenger-Mutant 1358 | -8/Materials | Lost 3 parts (2n1w) 1423 | -8/Materials | Core integrity fell below 50% 1436 | -8/Materials | Core integrity fell below 20% 1463 | -8/Materials | Lost 5 parts (1n2u2w) 1467 | -8/Materials | Destroyed by H-61 Shepherd with Heavy Assault Cannon Last Messages --------------- ALERT: Hostile activity reported, dispatching reinforcements to area. U-05 Engineer builds a Wall. Acquired 5 matter. U-05 Engineer builds a Wall. Slug penetrates H-61 Shepherd. Knocked back. Slug penetrates Wall. Gauss Rifle destroyed. Knocked back. Recoil Stabilizer destroyed. Slug penetrates Wall. Imp. Heat Sink destroyed. Knocked back. Acquired 5 matter. Slammed into K-01 Serf. Knocked back. S-10 Pest destroyed. Knocked back. Med. Storage Unit destroyed. Map ----- +----------------------------------------------------+ | ?????????????????#???????????????????????????????? | | ???????????????? #???????????????????????????????? | | ??????????????? #???????????????????????????????? | | ??????????????? #???????????????????????????????? | | ?????????????? #???????????????????????????????? | | ?????????????? ????????????????????????????????? | | ?????????????# ?????????????????????????????????? | | ????######### ??????????????????????????????????? | | ????? ??????????????????????????????????? | | ?????? ???????????????????????????????????? | | ??????? = ????????????????????????????????????? | | ?????####/#"#???????????????????????#########????? | | ?????# % #???????????????????????# ###### | | ?????# % #???????????????????????# #![[ | | ?????# !!! #???????????????????????# # [[ ! | | ?????# !!! #???????????????????????# #[ | | ?????# !!%=#???????????????????????# # ! | | ?????# * #???????????????????????# # | | ?????####"+"#???????????????????????# # """ | | ????????## "#???????????????????????# # """ | | ?????????# ##???????????????????????# # """ | | ########## #??????????????????####### ??# | | # #################### ###+######+### | | # s t | | %+ H =*! | | """ # % @% = %= | | """ "" ####+################# ##########+### | | """ Y" ## #????????????####+######??# == | | "" ## #???????????## #??# """" | | ## #???????????#% #??# ""R" | | ########### #???????????##[""""%%" #??# "" " | | ??????????# #????????????# """""%" #??# | | ??????????# #????????????# """""%% #??# | | ??????????# #????????????# """"""" #??# | | ??????????# #????????????# """""?" #??# | | ??????????# #????????????# ?? #??######## | | ??????????# #????????????#####?????#?????????? | | ??????????# #????????????????????????????????? | | ??????????# #????????????????????????????????? | | ??????????#######????????????????????????????????? | | ?????????????????????????????????????????????????? | | ?????????????????????????????????????????????????? | | ?????????????????????????????????????????????????? | | ?????????????????????????????????????????????????? | | ?????????????????????????????????????????????????? | | ?????????????????????????????????????????????????? | | ?????????????????????????????????????????????????? | | ?????????????????????????????????????????????????? | | ?????????????????????????????????????????????????? | | ?????????????????????????????????????????????????? | +----------------------------------------------------+ Best States ------------- Heat Dissipation 59 Energy Generation 10 Energy Capacity 250 Matter Stores 300 Matter Capacity 300 Sight Range 16 Robot Scan Range 14 Terrain Scan Density 10 Armor Coverage 600 Evasion (%) 50 Targeting Accuracy 13 Armor Integrity Analysis 30 Recoil Reduction 6 Item Schematics ----------------- None Robot Schematics ------------------ None Fabricated ------------ Nothing Alien Tech Used ----------------- None Achievements -------------- None Challenges ------------ None Game ------ Seed SwarmKineticDriver Manual? 0 Play Time 00:21:35 Cumulative 65.9 hours Start 2024.08.08 @ 15:34:22 End 2024.08.08 @ 15:54:06 Sessions 1 Manual Loads 0 Difficulty Rogue Special Mode None Game No. 63 Rogue 63 Adventurer 0 Explorer 0 Win Type - Total 0 Types 0/0/0/0/0/0/0/0/0 Lore% 23 Gallery% 44 Achievement% 33 Wizard Run 0 Options --------- Layout 2 ASCII 0 Keyboard 0 Movement Arrows Keybinds 0 Fullscreen 1 Font 16/Terminus Map View 55x47 Zoom Use 0% Tactical HUD 0 Map Filters NONE Filters NONE Steam 1 RUN: 89fe2ce8-fa97-4d5f-bd91-e0ab69a6a0dc